Workbook

Sheet Progress
B1: No. Completed | C1: No. SAQ's | D1: % Complete | E1: % Total SAQ's
A2: Airway Mx | B2: ='Airway Mx'!B28 -> 0 | C2: ='Airway Mx'!B27 -> 20 | D2: ='Airway Mx'!B29 -> 0 | E2: =(C2/C22)*100 -> 6.666666667
A3: GA + Sedation | B3: ='GA + Sedation'!B29 -> 0 | C3: ='GA + Sedation'!B28 -> 21 | D3: ='GA + Sedation'!B30 -> 0 | E3: =(C3/C22)*100 -> 7
A4: Pain | B4: =Pain!B23 -> 0 | C4: =Pain!B22 -> 15 | D4: =Pain!B24 -> 0 | E4: =(C4/C22)*100 -> 5
A5: Periop Med | B5: ='Periop Med'!B90 -> 0 | C5: ='Periop Med'!B89 -> 80 | D5: ='Periop Med'!B91 -> 0 | E5: =(C5/C22)*100 -> 26.66666667
A6: Regional + LA | B6: ='Regional + LA'!B22 -> 0 | C6: ='Regional + LA'!B21 -> 14 | D6: ='Regional + LA'!B23 -> 0 | E6: =(C6/C22)*100 -> 4.666666667
A7: Resus, Trauma + Crisis Mx | B7: ='Resus, Trauma and Crisis Mx'!B28 -> 0 | C7: ='Resus, Trauma and Crisis Mx'!B27 -> 16 | D7: ='Resus, Trauma and Crisis Mx'!B29 -> 0 | E7: =(C7/C22)*100 -> 5.333333333
A8: Safety + Quality | B8: ='Safety + Quality'!B44 -> 0 | C8: ='Safety + Quality'!B43 -> 38 | D8: ='Safety + Quality'!B45 -> 0 | E8: =(C8/C22)*100 -> 12.66666667
A9: Roles in Practice | B9: ='Roles in Practice'!B20 -> 0 | C9: ='Roles in Practice'!B19 -> 9 | D9: ='Roles in Practice'!B21 -> 0 | E9: =(C9/C22)*100 -> 3
A10: Cardiac | B10: ='Cardiac '!B20 -> 0 | C10: ='Cardiac '!B19 -> 7 | D10: ='Cardiac '!B21 -> 0 | E10: =(C10/C22)*100 -> 2.333333333
A11: Gsurg+Uro+Gyn+Endo | B11: ='Gsurg+Uro+Gyn+Endo'!B11 -> 0 | C11: ='Gsurg+Uro+Gyn+Endo'!B10 -> 5 | D11: ='Gsurg+Uro+Gyn+Endo'!B12 -> 0 | E11: =(C11/C22)*100 -> 1.666666667
A12: ENT+MF+Dent+ECT | B12: ='ENT+MF+Dent+ECT'!B13 -> 0 | C12: ='ENT+MF+Dent+ECT'!B12 -> 6 | D12: ='ENT+MF+Dent+ECT'!B14 -> 0 | E12: =(C12/C22)*100 -> 2
A13: ICU | B13: =ICU!B25 -> 0 | C13: =ICU!B24 -> 7 | D13: =ICU!B26 -> 0 | E13: =(C13/C22)*100 -> 2.333333333
A14: NSurg+Nrad | B14: ='NSurg+NRad'!B16 -> 0 | C14: ='NSurg+NRad'!B15 -> 7 | D14: ='NSurg+NRad'!B17 -> 0 | E14: =(C14/C22)*100 -> 2.333333333
A15: OBS | B15: =OBS!B25 -> 0 | C15: =OBS!B24 -> 16 | D15: =OBS!B26 -> 0 | E15: =(C15/C22)*100 -> 5.333333333
A16: OPHTHAL | B16: =OPHTHAL!B12 -> 0 | C16: =OPHTHAL!B11 -> 4 | D16: =OPHTHAL!B13 -> 0 | E16: =(C16/C22)*100 -> 1.333333333
A17: ORTHO | B17: =ORTHO!B11 -> 0 | C17: =ORTHO!B10 -> 2 | D17: =ORTHO!B12 -> 0 | E17: =(C17/C22)*100 -> 0.6666666667
A18: PAEDS | B18: =PAEDS!B32 -> 0 | C18: =PAEDS!B31 -> 16 | D18: =PAEDS!B33 -> 0 | E18: =(C18/C22)*100 -> 5.333333333
A19: Plastics + Burns | B19: ='Plastics+Burns'!B9 -> 0 | C19: ='Plastics+Burns'!B8 -> 3 | D19: ='Plastics+Burns'!B10 -> 0 | E19: =(C19/C22)*100 -> 1
A20: Thoracics | B20: =Thoracics!B16 -> 0 | C20: =Thoracics!B15 -> 7 | D20: =Thoracics!B17 -> 0 | E20: =(C20/C22)*100 -> 2.333333333
A21: VASC+IntRad | B21: ='VASC+IntRad'!B15 -> 0 | C21: ='VASC+IntRad'!B14 -> 7 | D21: ='VASC+IntRad'!B16 -> 0 | E21: =(C21/C22)*100 -> 2.333333333
A22: Overall | B22: =SUM(B2:B21) -> 0 | C22: =SUM(C2:C21) -> 300 | D22: =(B22/C22)*100 -> 0 | E22: 100

Sheet Airway Mx
A1: Airway Management | E1: Pass Rate
A2: Airway Assessment and Planning
A3: 2018.2.4 | B3: A 50-year-old man with a base of tongue cancer is scheduled for elective tracheostomy immediately followed by tumour resection. Discuss the issues involved with his airway management. | D3: FALSE | E3: 75.9
A4: 2015.1.11 | B4: List the essential equipment currently recommended to manage a difficult airway in an adult patient. (50%) Justify supplementary items you would recommend. (50%) | D4: FALSE | E4: 77
A5: 2015.1.15 | B5: Describe the physiological principles underlying preoxygenation prior to the induction of anaesthesia. (50%) Discuss the advantages and disadvantages of using a high inspired oxygen concentration (>80%) during maintenance of anaesthesia. (50%) | D5: FALSE | E5: 83.4
A6: 2014.1.05 | B6: A 40 year-old male is scheduled for elective bariatric surgery.For this patient: List the important features of history and examination that may identify a potentially difficult airway. (30%) How could you modify your anaesthetic technique to minimise hypoxia at induction. (70%) | D6: FALSE | E6: 87.2
A7: 2013.1.01 | B7: a. How is the need for manual in-line stabilisation of the neck determined? (50%) b. What are the implications of inline stabilisation for endotracheal intubation of the airway (50%). | D7: FALSE | E7: 68.3
A8: 2013.1.04 | B8: a. Describe the sensory innervation of the respiratory passage from the nostrils to, and including, the vocal cords (50%). b. List the indications and contraindications for nasal intubation (50%). | D8: FALSE | E8: 85.1
A9: 2010.2.04 | B9: A 68-year-old man in hospital awaiting definitive surgery for a supraglottic squamous cell carcinoma of the larynx has worsening stridor at rest. (a) How might his symptoms be improved in the preoperative period? (30%) (b) Describe your evaluation of his airway and how this will influence your intraoperative airway management plan. (70%) | D9: FALSE | E9: 64.7
A10: 2010.2.10 | B10: An adult patient who was intubated for tonsillectomy is noted to have an upper central incisor tooth missing in the Recovery Room after extubation. (a) List the predisposing factors for perioperative dental damage. (50%) (b) What is your management of this situation? (50%) | D10: FALSE | E10: 79.9
A11: 2010.1.15 | B11: a. What is the physiological basis of preoxygenation? (50%) b. Describe your method of preoxygenation including how you assess its adequacy. (50%) | D11: FALSE | E11: 56.6
A12: Post intubation Care and Emergencies
A13: 2018.1.7 | B13: A 60-year-old man is anaesthetised for a rigid cystoscopy. You notice bile stained fluid in his classic laryngeal mask airway (LMA) during the procedure. Describe your management. | D13: FALSE | E13: 91.1
A14: 2012.1.10 | B14: An adult patient from the intensive care unit with severe adult respiratory distress syndrome (ARDS) requires a laparotomy for an acute abdomen. a. What are the features of ARDS? (30%) b. Explain your perioperative ventilation strategy (70%) | D14: FALSE | E14: 70.9
A15: 2011.2.09 | B15: You are called to anaesthetise a 70-year-old man with a perforated bowel for laparotomy, three days after colonoscopy. Outline the measures you will take to reduce the likelihood of this patient developing acute lung injury. | D15: FALSE | E15: 26
A16: 2011.1.08 | B16: (a) Describe the anatomy, including surface landmarks, relevant to performing cricothyroidotomy. (50%) (b) What are the complications of this procedure? (50%) | D16: FALSE | E16: 55
A17: Airway Equipment and Adjuncts
A18: 2019.2.14 | B18: Compare and contrast first-generation and second-generation laryngeal mask airways. (55%) | D18: FALSE | E18: 55
A19: 2018.1.10 | B19: Describe the physiological effects of a high-flow nasal cannula device (HFNC) e.g. OptiflowTM or AirvoTM. (50%) Justify its use in an adult endoscopy suite. (50%) | D19: FALSE | E19: 60.6
A20: 2016.1.9 | B20: Considering the indications and limitations, compare the rationale for the use of: —Hudson masks —Non-rebreathing masks —Nasal prongs | D20: FALSE | E20: 62
A21: 2015.2.10 | B21: A patient is undergoing revision parathyroidectomy. At the surgeon’s request, you have placed a Nerve Integrity Monitor (NIM) tube for monitoring recurrent laryngeal nerve function. The surgeon is unable to elicit a response from the monitor when stimulating the recurrent laryngeal nerve. a. Explain how the NIM tube monitors nerve function? (30%) b. Outline the possible causes of being unable to elicit a response and how you would manage them? (70%) | D21: FALSE | E21: 68.3
A22: 2012.1.15 | B22: With regard to oxygen therapy for patients in a general postoperative ward a. Describe the options available (30%) b. What are the justifications for your choice for a particular patient? (70%) | D22: FALSE | E22: 32.4
A23: 2011.2.01 | B23: Compare and contrast oxygen delivery by nasal prongs, simple facemask and Venturi mask. | D23: FALSE | E23: 5
A24: Extubation
A25: 2017.1.15 | B25: Outline extubation strategies for anticipated difficult extubation of an adult. | D25: FALSE | E25: 60.5
A27: No. SAQ's | B27: =COUNTA(D3:D25) -> 20
A28: Completed | B28: =COUNTIF(D3:D25, TRUE) -> 0
A29: Percent | B29: =(B28/B27)*100 -> 0

Sheet GA + Sedation
A1: General Anaesthesia and Sedation | E1: Pass rate
A2: Clinical Pharmacology
A3: 2018.2.7 | B3: Justify your use of perioperative prophylactic antiemetics. | D3: FALSE | E3: 35.5
A4: 2016.1.5 | B4: Outline the pharmacological features of remifentanil. (50%) Describe how these features can be utilised when using remifentanil in clinical practice. (50%) | D4: FALSE | E4: 66
A5: 2015.1.2 | B5: List the risk factors for postoperative nausea and vomiting (PONV) (30%) Evaluate methods to minimise PONV (70%) | D5: FALSE | E5: 58.5
A6: 2011.1.01 | B6: (a) What is the role of dexamethasone in the management of postoperative nausea and vomiting? (70%) (b) What are the potential problems associated with its use? (30%) | D6: FALSE | E6: 90
A7: 2011.1.12 | B7: (a) What are the complications associated with residual neuromuscular blockade? (30%) (b) Evaluate the methods available to assess residual neuromuscular blockade. (70%) | D7: FALSE | E7: 55
A8: Integrated Pharmacology
A9: 2019.2.15 | B9: A 16-year-old girl has failed to wake from anaesthesia following posterior instrumentation for severe idiopathic scoliosis. Discuss the potential causes and management of her failure to wake. (61.8%) | D9: FALSE | E9: 61.8
A10: 2015.2.5 | B10: A 61 year old woman is scheduled for total laparoscopic hysterectomy. She has had an episode of awareness under anaesthesia during previous laparoscopic surgery. a. What are the risk factors for awareness? (30%) b. How would you minimise this patient’s risk of awareness during her operation? (70%) | D10: FALSE | E10: 80.1
A11: 2015.1.9 | B11: Forty minutes after a laparoscopic appendicectomy has been completed, a 55 year old patient has failed to regain consciousness. List the potential causes. (30%) Describe your management (70%) | D11: FALSE | E11: 83.4
A12: 2013.2.12 | B12: Three days after a patient has undergone hemiarthroplasty under general anaesthesia, his relatives ask to see you because of concerns that the patient does not recognise family members. This was not present preoperatively. a. What features would distinguish between delirium and dysfunction in this setting? (50%) b. What you would advise the family to be the expected outcome? (50%) | D12: FALSE | E12: 46.7
A13: 2012.2.15 | B13: 1. Classify the possible causes for patient awareness under general anaesthesia. (70%) 2. Evaluate the evidence for the use of Bispectral Index monitoring in reducing the risk of awareness. (30%) | D13: FALSE | E13: 50.3
A14: Vascular Access
A15: 2018.1.4 | B15: Describe the anatomy relevant to cannulation of the subclavian vein via the infraclavicular approach. | D15: FALSE | E15: 44.6
A16: 2015.2.7 | B16: A drug has been unintentionally administered through a radial arterial line in an awake patient. Describe your management of this situation. | D16: FALSE | E16: 50.3
A17: 2015.2.9 | B17: A patient requires vascular access for three weeks. a. List the advantages and disadvantages of a peripherally inserted central catheter (PICC line) compared to a percutaneous central venous catheter (CVL). (50%) b. Outline the methods by which you would minimize the risks associated with the placement of a PICC line. (50%) | D17: FALSE | E17: 90.7
A18: 2014.1.07 | B18: You are inserting a central venous line (CVL) as part of your anaesthetic management for a laparotomy. Outline the perioperative measures you should consider to minimise central venous line sepsis. | D18: FALSE | E18: 43.4
A19: 2011.2.05 | B19: Insertion of a central venous line may result in cardiac tamponade. a. How would you recognise this complication? (50%) b. How could you minimise the risk of this complication? (50%) | D19: FALSE | E19: 46
A20: Fluid Therapy
A21: 2018.2.8 | B21: Describe the process of intraoperative cell salvage. (50%) Discuss the indications and contraindications for intraoperative cell salvage. (50%) | D21: FALSE | E21: 61
A22: 2017.1.7 | B22: Describe the factors that determine the maximum achievable rate of intravenous fluid administration. (50%) Outline the issues associated with the use of rapid infusion devices. (50%) | D22: FALSE | E22: 81.6
A23: 2013.2.03 | B23: a. Outline the principles of stroke volume variation (SVV) measurement. (50%) b. Describe how SVV measurement can be used to assist haemodynamic optimisation in a patient undergoing major elective abdominal surgery. (50%) | D23: FALSE | E23: 42.9
A24: 2013.1.03 | B24: An elderly patient is to undergo operative fixation of a fractured neck of femur. A radial arterial line is inserted prior to induction, and when transduced, the trace appears damped a. What are the possible causes for the trace to appear damped in this patient? (50%)b. Outline the steps you would take to ensure the accuracy of your arterial line (50%) | D24: FALSE | E24: 69.3
A25: 2011.2.03 | B25: What are the benefits and limitations of red blood cell salvage? (50%) How would you justify its introduction into your institution? (50%) | D25: FALSE | E25: 55
A26: 2011.1.04 | B26: Evaluate the use of human albumin in perioperative volume replacement. | D26: FALSE | E26: 11
A28: No. SAQ's | B28: =COUNTA(D3:D26) -> 21
A29: Completed | B29: =COUNTIF(D3:D26, TRUE) -> 0
A30: Percent | B30: =(B29/B28)*100 -> 0

Sheet Pain
A1: Pain Medicine
A2: Assessment
A3: Management
A4: 2018.2.3 | B4: One of your anaesthetic colleagues is prescribing fentanyl patches as discharge medication for patients following total hip joint replacement. Evaluate this practice. | D4: FALSE | E4: 68.1
A5: 2018.1.15 | B5: Evaluate the use of intravenous lignocaine infusions for perioperative analgesia. | D5: FALSE | E5: 70.9
A6: 2017.1.3 | B6: List the methods of analgesia that can be used for patients undergoing open liver resection surgery. (30%) Justify your perioperative pain management strategy. (70%) | D6: FALSE | E6: 60
A7: 2017.1.8 | B7: A 75-year-old lady scheduled for total knee replacement is currently using a fentanyl patch (75 μg/hour) for analgesia to manage her knee pain. Discuss how this influences your perioperative pain management. | D7: FALSE | E7: 64.3
A8: 2015.1.7 | B8: An elderly patient is scheduled for total hip replacement and has been taking oxycodone 40mg twice daily in the last six months for severe hip pain. What issues do you anticipate with regard to her oxycodone use? (50%) How do these issues influence your postoperative management? (50%) | D8: FALSE | E8: 74.6
A9: 2014.1.15 | B9: Define persistent post surgical pain. Outline the interventions that are efficacious in reducing the transition of acute post surgical pain to persistent post surgical pain | D9: FALSE | E9: 85.8
A10: 2013.2.11 | B10: Evaluate the role of tramadol in acute and chronic pain management. | D10: FALSE | E10: 24.7
A11: 2011.2.10 | B11: A 70-year-old patient wearing a transdermal buprenorphine slow release patch (Norspan®) (5μg/h) presents for knee arthroscopy. a. Describe the mechanism of action and pharmacokinetic profile of this patch. (50%) b. What are the implications for perioperative pain management? (50%) | D11: FALSE | E11: 33
A12: 2011.1.11 | B12: (a) Describe the clinical pharmacology of codeine including an outline of its therapeutic use. (70%) (b) Describe the influence of pharmacogenetics on the variability of patient response to codeine. (30%) | D12: FALSE | E12: 49
A13: 2010.2.09 | B13: (a) List the predisposing factors for pain persisting for more than three months postoperatively. (50%) (b) Outline the interventions that have been demonstrated to be efficacious in the prevention of persistent postoperative pain. (50%) | D13: FALSE | E13: 54.7
A14: Chronic Pain, Neuropathic Pain, Addiction and Psychosocial factors
A15: 2015.2.4 | B15: a. Describe the clinical features of trigeminal neuralgia (50%) b. Discuss the efficacy of the treatment modalities available for this condition. (50%) | D15: FALSE | E15: 19.9
A16: 2013.1.08 | B16: a. In a patient who complains of post operative pain, which features of the history and examination suggest a diagnosis of acute neuropathic pain? (50%) b. How would the diagnosis affect your postoperative pain management plan? (50%) | D16: FALSE | E16: 75.2
A17: 2010.1.11 | B17: A 34 year old, opioid-dependant woman is complaining of severe pain on the day after a first metatarsal osteotomy. The nurses are concerned she is drug-seeking. a. How would you assess this patient? (60%) b. Outline your pain management plan. (40%) | D17: FALSE | E17: 76.5
A18: Pain in Clincal Scenarios
A19: 2019.1.9 | B19: List the factors associated with increased mortality following rib fractures. (30%) Describe a comprehensive rib fracture management plan. (70%) | D19: FALSE | E19: 68.3
A20: 2012.2.01 | B20: You are asked to anaesthetise an 80-year-old lady with dementia and a fractured neck of femur. She is on no other medication. 1. What are the issues in assessing pain in this patient? (50%) 2. What would you prescribe for postoperative analgesia and why? (50%) | D20: FALSE | E20: 37.6
A22: No. SAQ's | B22: =COUNTA(D3:D20) -> 15
A23: Completed | B23: =COUNTIF(D3:D20, TRUE) -> 0
A24: Percent | B24: =(B23/B22)*100 -> 0

Sheet Periop Med
A1: Perioperative Medicine | E1: Pass rate
A2: Preoperative
A3: Preoperative Assessment
A4: 2019.1.7 | B4: pH 7.01, PCO2 50mmHg, PO291mmHg, SaO2 91%, HCO3 12.2 mmol/L. Interpret this arterial blood gas (ABG). Justify any additional information you would require to complete your interpretation. Describe a clinical situation which may explain this ABG | D4: FALSE | E4: 58.7
A5: 2019.1.10 | B5: These are the blood results of a 65-year-old man scheduled for a revision total hip replacement. Interpret these results (30%) and how would you manage this patient pre-operaitvely (70%) Hb 120 g/l MCV 78 fL WCC 5.5 x 103/l Plt 250 x 109/l Na 136 mmol/l K 4.0 mmol/l Urea 5.5 mmol/l Cr 100 mmol/ Iron 8 Transferrin 3.2 Transferrin saturation12 Ferritin40 CRP 8 | D5: FALSE | E5: 47.6
A6: 2017.2.12 | B6: This table displays the pulmonary function test results for a 67-year-old male. Define the following: FEV1, FVC, VC and DLCO. (50%) Interpret these results and discuss this patient’s possible diagnoses. (50%) | D6: FALSE | E6: 89
A7: 2016.2.5 | B7: A 20-year-old female presents to the emergency department in an agitated state. A. Interpret her blood gas (taken on room air). (50%) B. List the most likely differential diagnoses. (50%) | D7: FALSE | E7: 69
A8: 2014.2.5 | B8: a) Outline the principles of cardiopulmonary exercise testing (50%) b) Evaluate the role of cardiopulmonary exercise testing in a patient who is scheduled for oesophagectmony (50%) | D8: FALSE | E8: 48.5
A9: 2014.1.14 | B9: A patient’s arterial blood gases include pH 7.1 pCO2 27 mmHg HCO3 <15 A. What is the acid-base status of this patient and briefly justify your differential diagnosis list. B. Describe how other biochemical parameters would help identify the cause | D9: FALSE | E9: 59.4
A10: 2013.2.06 | B10: A patient is undergoing femoro-popliteal artery bypass grafting for intermittent claudication under spinal anaesthesia with no sedation. Discuss this patient’s intraoperative arterial blood gas result. FiO2 0.5 Patient temperature 36.5oC pH 7.235 (7.35 – 7.45) PaO2 145 mmHg (80 – 100 mmHg) PaCO2 50 mmHg (35 – 45 mmHg) HCO3⁻ 15 mmol/L (22 – 26 mmol/L) Base Excess -6 mmol/L (-2 – +2 mmol/L) Lactate 3.5 mmol/L (0.5 – 2 mmol/L) | D10: FALSE | E10: 71.4
A11: 2013.1.11 | B11: A 25-year-old male scheduled for elective surgery is found to have a systolic murmur on the day of surgery a. What are the clinical features and ECG findings in this patient that would prompt you to postpone the case to allow further investigation? (70%) b. What are the likely causes of this murmur? (30%) | D11: FALSE | E11: 52.5
A12: 2011.1.13 | B12: A 50-year-old man presents with confusion and the following electrolyte profile: Na+ 155 mmol/l K+ 4 mmol/l HCO3− 15 mmol/l Creatinine 120 μmol/l Hb 200 g/l a. What are the possible causes of this abnormality? (30%) b. How can they be distinguished? (70%) | D12: FALSE | E12: 40
A13: 2011.1.14 | B13: (a) Describe the abnormality on this electrocardiogram. (30%) (b) What are the implications of this abnormality for anaesthesia? (70%) | D13: FALSE | E13: 31
A14: 2010.2.03 | B14: A 45-year-old man with a longstanding history of alcoholism is booked for upper gastrointestinal endoscopy and banding of oesophageal varices following an episode of haematemesis. (a) How is the severity of this patient’s liver disease assessed? (50%) (b) How do these findings influence your evaluation of this patient’s perioperative risk? (50%) | D14: FALSE | E14: 71.2
A15: 2010.2.15 | B15: Each of sections (a), (b) and (c) is worth equal marks; within each section, each question is worth equal marks. a) (i) Identifying the key features, what pattern of disorder is demonstrated by these tests? 15 (ii) What are the possible causes? (b) What are the implications of general anaesthesia for an adult patient with Curve B presenting for a knee arthroscopy? c) (i) Describe the abnormalities on this capnograph. (ii) What is your differential diagnosis? (iii) How would you identify the likely cause in the intraoperative setting | D15: FALSE | E15: 51.8
A16: Harm/ Risk Minimisation and Enhanced Recovery
A17: 2019.2.10 | B17: Describe the role of the anaesthetist in minimising surgical site infection (45.8%) | D17: FALSE | E17: 45.8
A18: 2017.1.12 | B18: Outline the factors relevant to selection of a perioperative antibiotic prophylaxis regimen for a surgical patient. (50%) Discuss strategies to ensure appropriate implementation of antibiotic prophylaxis regimens. (50%) | D18: FALSE | E18: 67.6
A19: 2016.2.9 | B19: A patient on the morning endoscopy list lives alone and is planning to return home in a taxi. She has already taken her colonoscopy preparation solution. What are the considerations for discharge planning for this patient? | D19: FALSE | E19: 71.7
A20: 2016.1.11 | B20: As a perioperative physician, what strategies can you offer to assist a patient to cease smoking tobacco and how will you best communicate them? | D20: FALSE | E20: 79
A21: 2015.2.3 | B21: An adult patient is scheduled for a major operation during which significant blood loss is expected. Describe strategies you would consider peri-operatively when planning to minimise blood loss and transfusion requirement. | D21: FALSE | E21: 79.5
A22: 2015.2.13 | B22: a. Describe the principles behind an “Enhanced Recovery After Surgery (ERAS)” programme for colorectal surgery. (50%) b. Outline the key steps you would take in setting up this programme in your hospital (50%) | D22: FALSE | E22: 67.1
A23: 2015.1.12 | B23: In preadmission clinic you are assessing a patient who is concerned about the risk of developing venous thromboembolism (VTE) perioperatively. Outline the patient factors that increase the risk of VTE. (50%) Describe measures that may reduce the risk of perioperative VTE (50%) | D23: FALSE | E23: 83.4
A24: 2013.2.01 | B24: A 68-year-old man is scheduled for total knee replacement next week. He has hypertension, for which he is prescribed enalapril, and type 2 diabetes, for which he is prescribed metformin. Justify your perioperative management of his medications. | D24: FALSE | E24: 68.1
A25: 2011.1.15 | B25: Explain your approach to thromboprophylaxis in the patient undergoing total knee replacement. | D25: FALSE | E25: 30
A26: 2011.1.10 | B26: (a) What factors contribute to acute kidney injury in the perioperative period? (70%) (b) Outline the efficacy of perioperative strategies to reduce acute kidney injury. (30%) | D26: FALSE | E26: 52
A27: Medical Conditions, Periooperative Risk and Anaesthetic Management
A28: 2019.2.3 | B28: Discuss how Marfan syndrome influences your anaesthetic management for a patient requiring an urgent laparoscopic appendicectomy | D28: FALSE | E28: 67.2
A29: 2019.2.9 | B29: A 25-year-old male is scheduled for an elective inguinal hernia repair. He has a ventricular septal defect and was recently diagnosed with Eisenmenger syndrome. Discuss your preoperative assessment and how this affects your anaesthesia plan | D29: FALSE | E29: 55
A30: 2019.2.11 | B30: A patient on an organ transplantation waiting list is taking rivaroxaban for recurrent pulmonary emboli. Discuss your perioperative anticoagulation plan | D30: FALSE | E30: 54.3
A31: 2019.2.13 | B31: List the risk factors for perioperative stroke. (50%) Discuss the measures you use to minimise perioperative stroke in high-risk patients undergoing major orthopaedic surgery. (50%) | D31: FALSE | E31: 48.9
A32: 2019.1.3 | B32: List the causes of increased perioperative morbidity and mortality in surgical patients with type 2 diabetes mellitus. (30%) Outline the principles of perioperative management of these patients (70%) | D32: FALSE | E32: 47.1
A33: 2019.1.5 | B33: A 61-year-old man presents with a large haematemesis. He has known alcoholic liver disease and sedation is requested for an urgent gastroscopy. Outline your peri-procedural concerns | D33: FALSE | E33: 69.2
A34: 2019.1.8 | B34: A patient with a previous spinal cord injury presents for ureteric stenting. Discuss the pathophysiology of autonomic dysreflexia. (50%) Describe the intra-operative manifestations and subsequent management of autonomic dysreflexia. (50%) | D34: FALSE | E34: 54.8
A35: 2019.1.11 | B35: Define frailty and discuss the role of prehabilitation for patients with frailty. | D35: FALSE | E35: 54.3
A36: 2019.1.13 | B36: Outline your approach to the perioperative management of a patient who gives a strong family history of von Willebrand disease. | D36: FALSE | E36: 61.5
A37: 2018.2.2 | B37: A 30-year-old woman requires a laparoscopic appendicectomy. She reports a “severe allergic reaction” during a laparoscopy five years ago. Outline your strategy for managing this case, given her history. | D37: FALSE | E37: 64.5
A38: 2018.2.6 | B38: A patient scheduled for trans-sphenoidal pituitary surgery is noticed to have greater than normal urine output. How would you determine if this patient has diabetes insipidus? (30%) How would you manage diabetes insipidus in the perioperative period? (70%) | D38: FALSE | E38: 75.9
A39: 2018.2.11 | B39: Discuss your perioperative management of a patient with carcinoid syndrome presenting for small bowel resection. | D39: FALSE | E39: 42.6
A40: 2018.2.12 | B40: This is the standard 12-lead electrocardiogram (ECG) of a 76-year-old woman in the post- anaesthesia care unit following a total knee replacement. She has hypertension and type 2 diabetes, and her preoperative ECG showed sinus rhythm with a rate of 82 /minute. Interpret the ECG. Outline your initial management and develop a plan in the event of the rhythm disturbance persisting. | D40: FALSE | E40: 63.8
A41: 2018.1.3 | B41: A 43-year-old man with Down Syndrome is booked for an inguinal hernia repair. Discuss the issues that are relevant in providing anaesthesia for this patient having this surgery. | D41: FALSE | E41: 63.8
A42: 2018.1.6 | B42: A 63-year-old patient presents for urgent cancer surgery three weeks following myocardial infarction. Discuss the risk assessment of this patient for this surgery. (50%) How would you optimise this patient for surgery? (50%) | D42: FALSE | E42: 63.8
A43: 2018.1.9 | B43: An 80-year-old man is admitted to the high dependency unit following laparotomy for relief of a large bowel obstruction. He has a urinary catheter in situ. Three hours later he remains oliguric. What are the potential causes of oliguria in this patient? (50%) How would you differentiate between these causes? (50%) | D43: FALSE | E43: 91.1
A44: 2017.2.9 | B44: A 50-year-old woman with systemic sclerosis (scleroderma) presents for laparoscopic appendicectomy. She is currently treated with folate supplements and weekly methotrexate. Describe how your anaesthetic plan is modified by the presence of scleroderma in this patient. | D44: FALSE | E44: 44.8
A45: 2017.1.2 | B45: A 24-year-old female with cystic fibrosis is scheduled to undergo elective breast surgery. How does the presence of cystic fibrosis affect your perioperative management of this patient for this procedure? | D45: FALSE | E45: 70.3
A46: 2017.1.4 | B46: How do you determine if a patient with known obstructive sleep apnoea is suitable for day surgery? | D46: FALSE | E46: 44.9
A47: 2017.1.5 | B47: A 45-year-old man with insulin treated type 2 diabetes is undergoing a gastrectomy on the afternoon list. How will you manage his diabetes perioperatively? | D47: FALSE
A48: 2017.1.11 | B48: A 60-year-old female patient with known hypertrophic cardiomyopathy requires semi- urgent surgery for a femoral fracture. Describe the perioperative haemodynamic goals and justify your anaesthetic technique. | D48: FALSE | E48: 60.5
A49: 2016.2.13 | B49: A 70-year-old man scheduled for major surgery presents to the pre-anaesthesia assessment clinic. He has a history of ischaemic heart disease and coronary stent insertion, and is on aspirin and clopidogrel. Outline the considerations when managing his antiplatelet therapy. | D49: FALSE | E49: 67.8
A50: 2016.2.14 | B50: A 45-year-old male with longstanding diabetes is scheduled to undergo elective laparoscopic cholecystectomy. 1. In the pre-anaesthesia assessment clinic, how would you assess this patient for the presence of diabetic autonomic neuropathy?(50%) 2.Discuss the anaesthetic implications of his autonomic neuropathy.(50%) | D50: FALSE | E50: 70.4
A51: 2016.1.2 | B51: A 30-year-old patient with myotonic dystrophy is scheduled for surgery for acute appendicitis. Outline the important factors in the preoperative assessment of this patient. (50%) Describe how this patient’s myotonic dystrophy will affect your anaesthetic management.(50%) | D51: FALSE | E51: 65
A52: 2016.1.10 | B52: A patient with known primary pulmonary hypertension is scheduled to undergo elective umbilical hernia repair. How will you assess the severity of this patient’s pulmonary hypertension? (50%) How does this diagnosis affect your perioperative management of this patient? (50%) | D52: FALSE | E52: 77
A53: 2016.1.15 | B53: A 40-year-old patient who is scheduled for elective total abdominal hysterectomy has a haemoglobin level of 80 g/l. Describe your preoperative assessment and optimisation of this patient's anaemia. | D53: FALSE | E53: 67
A54: 2015.2.2 | B54: A 50 year old patient has received an orthotopic heart transplant 10 years ago. He now presents for elective non-cardiac surgery. Outline the issues a prior heart transplant may present for the anaesthetist AND describe how these will affect anaesthetic management. | D54: FALSE | E54: 60.9
A55: 2015.2.12 | B55: A 47 year old man presents to the emergency department with acute abdominal pain requiring a laparotomy. He is known to have chronic high intake of alcohol. Describe how chronic alcohol misuse will affect your perioperative management of this patient. | D55: FALSE | E55: 29.2
A56: 2015.1.10 | B56: A 68 year-old male with severe Parkinson's Disease presents for elective right hemicolectomy. Current medications include levodopa/benserazide and selegiline (monoamine oxidase inhibitor). What clinical features of Parkinson ’s disease affect anaesthesia? (50%) Justify your perioperative drug management plan. (50%) | D56: FALSE | E56: 69.9
A57: 2015.1.14 | B57: A 40 year old requires a laparotomy ten days after an isolated traumatic spinal cord transection at C6. Outline the key anaesthetic issues. (50%) How would these influence your anaesthetic management? (50%) | D57: FALSE | E57: 34.7
A58: 2014.2.4 | B58: A patient scheduled for transurethral resection of the prostate is seen in the pre-admission clinic. He has non-valvular atrial fibrillation and was commenced on dabigatran 150 mg bd when he had a minor stroke three months ago. a) Outline briefly the advantages and disadvantages of dabigatran as compared to warfarin for stroke prevention in elective surgical patients. (30%) b) Describe and justify your plan for the perioperative management of this patient’s anticoagulation. (70%) | D58: FALSE | E58: 53
A59: 2014.2.9 | B59: A 30 year old patient with myasthenia gravis presents for orthopaedic procedure and refuses a regional anaesthetic technique a. What are the signs and symptoms of myasthenia gravis? (30%) b. How does the disease affect your anaesthetic management? (70%) | D59: FALSE | E59: 69.9
A60: 2014.1.04 | B60: A patient with chronic atrial fibrillation on warfarin is scheduled for elective surgery.Outline how you decide if bridging therapy is needed? (70%) Describe how you would bridge anticoagulation if necessary. (30%) | D60: FALSE | E60: 60.3
A61: 2014.1.13 | B61: A 53 year-old man with acromegaly presents for a transphenoidal resection of his pituitary tumour. Outline the features of acromegaly. (50%) How does this diagnosis influence your anaesthetic management? (50%) | D61: FALSE | E61: 77.2
A62: 2013.2.15 | B62: A 25-year-old female with longstanding C5-6 quadriplegia requires ureteric stent insertion. Outline the implications for anaesthesia. | D62: FALSE | E62: 75.3
A63: 2013.1.05 | B63: What are the perioperative concerns for the anaesthetist managing a patient with epilepsy? | D63: FALSE | E63: 53.5
A64: 2013.1.06 | B64: A fit 37-year-old female presents for laparoscopic appendicectomy. She reports a “severe allergic reaction” during her a laparoscopy 5 years ago. There were no tests performed and the records are not available. a. Outline your strategy for managing this case. (70%) b. List the investigations that are recommended following any suspected anaphylaxis and when they should be performed. (30%) | D64: FALSE | E64: 37.1
A65: 2013.1.15 | B65: A female patient scheduled requiring a total knee replacement is seen in clinic. A date has not yet been scheduled for surgery. On investigation she has a haemoglobin of 105 g/L 1. What are the most likely causes of this result, and how would confirm this? (50%) 2. What preoperative treatment would you undertake and why? What advice would you give for scheduling time of surgery? (50%) | D65: FALSE | E65: 66.8
A66: 2012.2.02 | B66: A 75-year-old man presents for right hemicolectomy for an obstructing lesion of the ascending colon that has failed to settle with conservative management. He had a drug-eluting stent placed eight months ago, and is currently on clopidogrel and aspirin. Discuss and justify your plan for perioperative management of his antiplatelet therapy? | D66: FALSE | E66: 63.8
A67: 2012.2.04 | B67: 1. What is the natural history of aortic stenosis? (30%) 2. What are the key echocardiographic features in haemodynamically significant aortic stenosis? (70%) | D67: FALSE | E67: 49.7
A68: 2012.1.3 | B68: a. List the risk factors for perioperative stroke (50%) b. Describe how you would minimise the risk in a high-risk patient having major orthopaedic surgery (50%) | D68: FALSE | E68: 61.5
A69: 2011.1.02 | B69: A patient with known idiopathic pulmonary fibrosis (fibrosing alveolitis) presents for an open right hemicolectomy. (a) What are the respiratory issues facing this patient with regard to their general anaesthetic? (70%) (b) Explain your intraoperative ventilation strategy. (30%) | D69: FALSE | E69: 46
A70: 2011.1.15 | B70: (a) How would you identify a patient with autonomic neuropathy associated with diabetes? (50%) (b) What are the anaesthetic implications from a cardiovascular perspective? (50%) | D70: FALSE | E70: 47
A71: 2010.2.11 | B71: A 78-year-old female presents for fixation of a displaced femoral fracture. She has longstanding mitral regurgitation and is known to have a mean pulmonary artery pressure of 60mmHg. She reports orthopnoea but is not short of breath at rest. (a) What are the issues of concern in your preoperative assessment? (50%) (b) How would you manage pulmonary vascular resistance perioperatively? (50%) | D71: FALSE | E71: 57.6
A72: 2010.1.03 | B72: A 20 year old female with a body mass index of 48 kg/m2 presents for an elective diagnostic laparoscopy for endometriosis. She has no other medical conditions. Describe the potential problems associated with anaesthetising this patient. | D72: FALSE | E72: 63.3
A73: 2010.1.04 | B73: a. Describe the pathophysiological changes associated with a haemoglobin of 75 g/L. (50%) b. Outline the patient factors that would indicate the need for a perioperative red blood cell transfusion in a patient with a haemoglobin of 75 g/L. (50%) | D73: FALSE | E73: 42.2
A74: 2010.1.06 | B74: A 40 year old man with hypertrophic obstructive cardiomyopathy (HOCM) presents for elective laparoscopic cholecystectomy. a. Describe the principles of intraoperative haemodynamic management for this patient. (40%) b. How would you manage hypotension post induction of general anaesthesia in this patient? (60%) | D74: FALSE | E74: 67.5
A75: Intraoperative
A76: 2016.2.11 | B76: A 30-year-old male is scheduled to undergo complex lower limb reconstructive surgery expected to last 18 hours. Discuss the issues associated with this prolonged procedure. | D76: FALSE | E76: 46.7
A77: Postoperative
A78: 2019.1.06 | B78: Describe your responsibilities as the anaesthetist before you leave your patient in the post anaesthesia care unit (PACU). (50%) Your patient has been in the PACU for an hour. The nurse asks you to change the discharge criteria so the patient can be discharged to the ward. Discuss your decision making process following this request. (50%) | D78: FALSE | E78: 34.1
A79: 2018.1.14 | B79: An elderly patient in the recovery unit is confused and agitated following surgery. Describe your management. | D79: FALSE | E79: 54
A80: 2017.2.07 | B80: A patient in the post anaesthesia care unit is suspected of having residual neuromuscular blockade. List ways to assess this patient for the presence of residual neuromuscular blockade. (30%) Discuss methods to reduce the risk of residual neuromuscular blockade. (70%) | D80: FALSE | E80: 74.8
A81: 2016.2.02 | B81: A patient presents for an elective inguinal hernia repair and his preoperative electrocardiogram shows trifascicular block. What implications might this have for this patient in the perioperative period and how will you manage those implications? | D81: FALSE | E81: 53.9
A82: 2016.2.04 | B82: A 55-year-old male is in the post-anaesthesia care unit after nasal surgery. He is conscious, dyspnoeic, and is coughing up frothy secretions. List your differential diagnosis AND how this would direct subsequent management. | D82: FALSE | E82: 44.7
A83: 2016.1.14 | B83: An obese 55-year-old female has undergone sleeve gastrectomy which concluded one hour earlier. The post anaesthetic care unit has called to report a blood pressure of 190/110 mmHg. Discuss your approach to the evaluation and management of the hypertension. | D83: FALSE | E83: 80
A84: 2014.2.10 | B84: As the on-duty specialist anaesthetist, you are asked to see a previously well 64 year-old man in the PACU with SpO2 of 85% two hours after laparoscopic right partial nephrectomy during which he lost 1 litre of blood. a) List the likely causes of the desaturation? (30%) b) Outline your approach to managing the patient’s hypoxaemia. (70%) | D84: FALSE | E84: 43.4
A85: 2014.1.06 | B85: A patient is complaining of central chest pain in the post anaesthesia care unit (PACU) following femoro-popliteal artery bypass surgery.Outline the diagnostic criteria for acute myocardial ischaemia on an ECG? (30%) Describe your management of acute myocardial ischemia in PACU in this patient. (70%) | D85: FALSE | E85: 57.1
A86: 2012.1.03 | B86: A 60-year-old man is admitted to the high dependency unit following laparotomy for relief of a large bowel obstruction. He has a urinary catheter in situ. Three hours later he remains oliguric. a. Define oliguria (10%) b. What are the potential causes of oliguria in this patient? (40%) c. How would you differentiate between these causes? (50%) | D86: FALSE | E86: 72
A87: 2011.2.14 | B87: A 70-year-old man has undergone radical prostatectomy under general anaesthesia. On emergence he has crushing central chest pain, is restless, and has cold, clammy skin. His blood pressure is 90/50 mm Hg, pulse rate 110/minute and SpO2 is 95% on oxygen via a Hudson mask. A twelve-lead ECG shows widespread ST segment elevation across the anterior chest leads. a. Describe your immediate management. (50%) b. What are the treatment priorities for this patient? (50%) | D87: FALSE | E87: 39
A89: No. SAQ's | B89: =COUNTA(D4:D87) -> 80
A90: Completed | B90: =COUNTIF(D4:D87, TRUE) -> 0
A91: Percent | B91: =(B90/B89)*100 -> 0

Sheet Regional + LA
A1: Regional and Local Anaesthesia | E1: Pass Rate
A2: General Regional Principles
A3: Complications
A4: 2016.1.1 | B4: A 65-year-old patient with type 2 diabetes is unable to dorsiflex her left foot 24 hours after undergoing a left total knee joint replacement under spinal anaesthesia and a left femoral nerve block. Discuss the possible causes of this problem. (50%) Outline how you would manage this situation. (50%) | D4: FALSE | E4: 71
A5: 2013.1.14 | B5: You perform multiple intercostal blocks using 300mg ropivavcaine for flail chest a. What features would make you suspect systemic local anaesthetic toxicity? (50%) b. How would you manage the situation? (50%) | D5: FALSE | E5: 67.3
A6: Central Neuraxial Blockade
A7: 2019.2.7 | B7: Describe the anatomy relevant to siting an epidural catheter for postoperative analgesia following open abdominal surgery. (50%) Outline the limitations and complications of providing epidural analgesia for this type of surgery. (50%) - (70.2%) | D7: FALSE | E7: 70.2
A8: 2018.1.11 | B8: Outline the factors influencing spread of intrathecal local anaesthetic. | D8: FALSE | E8: 52.6
A9: 2014.108 | B9: A patient has a mid-thoracic epidural inserted preoperatively prior to anaesthesia for open AAA repair. Describe the relevant anatomy including surface landmarks for insertion of a mid-thoracic epidural. Use of diagram(s) may be helpful (50%) List reasons for persistent leg weakness 4 hours after emergence from anaesthesia in this case (50%) | D9: FALSE | E9: 71.2
A10: 2012.1.12 | B10: a. Describe the anatomy of the epidural space (50%) b. What are the clinical implications of the anatomical differences between thoracic and lumbar epidural spaces in the placement and management of epidural analgesia? (50%) | D10: FALSE | E10: 64.8
A11: Specific Regional Techniques
A12: 2018.2.5 | B12: Describe (and/or draw) the anatomy in the optimal ultrasound view when performing a supraclavicular brachial plexus block. (50%). List the possible complications and limitations of this block. (50%) | D12: FALSE | E12: 46.8
A13: 2017.1.6 | B13: Describe the innervation of the foot relevant to an ankle block. | D13: FALSE | E13: 64.3
A14: 2015.2.1 | B14: A 65 year old female patient requires open reduction and internal fixation (ORIF) of her fractured distal radius and ulna. She has no other injuries and is otherwise well but is keen to avoid general anaesthesia. a. List the options for nerve block to provide regional anaesthesia in this patient (30%) b. Describe the advantages and disadvantages of each of these options (70%) | D14: FALSE | E14: 75.4
A15: 2015.1.1 | B15: Describe the anatomy relevant to performing a thoracic paravertebral block. (50%) List the advantages and complications of performing this block for a patient undergoing radical mastectomy (50%) | D15: FALSE | E15: 66.3
A16: 2014.2.15 | B16: a. Describe the anatomy relevant to performing a femoral nerve block at the level of the inguinal ligament (50%) b. Outline the advantages and disadvantages of performing a femoral nerve block at this site as part of an analgesia plan for a patient undergoing total knee arthroplasty. (50%) | D16: FALSE | E16: 69.3
A17: 2013.2.05 | B17: An adult patient is scheduled for formation of an arterio-venous fistula at the wrist. a. Describe the nerve supply relevant to this surgery. (30%) b. Discuss the suitability of an interscalene block in this situation. (70%) | D17: FALSE | E17: 57.7
A18: 2012.2.12 | B18: Describe the anatomy of the Transversus Abdominis Plane (TAP) relevant to regional analgesia. (70%) List the complications associated with TAP block. (30%) | D18: FALSE | E18: 30.2
A19: 2011.2.12 | B19: a. Which peripheral nerve/s need to be blocked for complete analgesia following repair of a tibial plateau fracture? (30%) b. Describe your technique for blockade of these nerve/s (EXCLUDING central neuraxial blockade). (70%) | D19: FALSE | E19: 73
A21: No. SAQ's | B21: =COUNTA(D3:D19) -> 14
A22: Completed | B22: =COUNTIF(D3:D19, TRUE) -> 0
A23: Percent | B23: =(B22/B21)*100 -> 0

Sheet Resus, Trauma and Crisis Mx
A1: Resuscitation, Trauma and Crisis Management | E1: Pass Rate
A2: Resuscitation | D2: FALSE
A3: 2016.2.8 | B3: A. List the clinical features that support a diagnosis of malignant hyperthermia in an anaesthetised patient. (30%) B. Describe your immediate management of suspected malignant hyperthermia. (70%) | D3: FALSE | E3: 83.6
A4: 2015.2.8 | B4: A 20 year old patient has been successfully resuscitated from suspected anaphylaxis. Describe your immediate and longer term post crisis management. | D4: FALSE | E4: 82.6
A5: 2014.2.6 | B5: You are called to see a 30 year old man with bilateral fractured femurs. He has been diagnosed with Fat Embolism Syndrome. a. Outline the pathophysiology of Fat Embolism Syndrome? (50%) b. Describe the principles of management of Fat Embolism Syndrome? (50%) | D5: FALSE | E5: 31.9
A6: 2012.1.01 | B6: In regard to serotonin syndrome a. What are the risk factors? (20%) b. What are the clinical manifestations? (40%) c. What is the treatment for an acute episode of serotonin syndrome? (40%) | D6: FALSE | E6: 59.9
A7: 2011.1.06 | B7: A 60-year-old man is booked for plating of a fractured ankle. He arrests on induction. His ECG shows ventricular fibrillation. Outline the immediate management of his cardiac arrest with particular reference to current resuscitation guidelines. | D7: FALSE | E7: 55
A8: 2010.2.13 | B8: Outline the principles of an initial management plan for diabetic ketoacidosis, having regard to the physiological derangements involved. | E8: 75.5
B9: A 58 year old man presents for tonsillectomy for a tonsillar tumour. He has a 2 year history of intermittent palpitations. His electrocardiogram at diagnosis shows the following a. What is the diagnosis? Describe the electrocardiographic changes that support your diagnosis. (30%) Following the administration of neostigmine and atropine for reversal of neuromuscular blockade, you see the following rhythm on your monitor. b. What is this rhythm? How would you manage this situation? (70%) | D9: FALSE | E9: 84.9
A10: Shock
A11: 2015.1.4 | B11: A 40-year-old 100 kg patient presents with septicaemia of unknown cause. After receiving two litres of 0.9% NaCl (Normal Saline) as initial resuscitation the patient has the following observations: HR 126 bpm BP 80/40 mmHg Outline your initial resuscitation goals. (30%) Evaluate options for ongoing fluid resuscitation at this time. (70%) | D11: FALSE | E11: 38.3
A12: Acute Respiratory Failure
A13: Acute Neurological Deterioration
A14: Metabolic and Electrolyte Disturbances
A15: 2014.2.12 | B15: A 55 year old patient is undergoing emergency laparotomy for acute bowel obstruction. Intraoperative blood tests include the following result: Serum Mg++ 0.40 mmol/L (Normal 0.70 – 1.00 mmol/L) a) Outline the potential causes for this result and the effects it may produce. (70%) b) Describe the management of this abnormality. (30%) | D15: FALSE | E15: 55.4
A16: Trauma
A17: 2017.2.13 | B17: Discuss your strategy for the management of coagulopathy in the multitrauma patient. | D17: FALSE | E17: 62.6
A18: 2012.2.10 | B18: A trauma patient presents thirty minutes after a significant crush injury, with an estimated 40% blood loss. He was previously well. 1. Explain the coagulation abnormalities you would expect in this patient at this stage. (60%) 2. Discuss the current evidence for treatment of these abnormalities. (40%) | D18: FALSE | E18: 63.8
A19: 2010.2.01 | B19: (a) What are the clinical consequences of hypothermia to 34⁰C in adults? (50%) (b) How can you manage body temperature in a multi-trauma patient? (50%) | D19: FALSE | E19: 74.1
A20: 2010.1.10 | B20: a. Describe the pathophysiological effects of an inhalational injury following a house fire. (60%) b. What implications would this have for anaesthesia one week after the injury? (40%) | D20: FALSE | E20: 34.3
A21: Crisis Management
A22: 2018.2.9 | B22: Discuss the non-technical skills required for management of an intraoperative crisis. | D22: FALSE | E22: 63.1
A23: Environmental and equipment crises
A24: 2019.2.8 | B24: Your patient is midway through a laparoscopic cholecystectomy. You smell smoke and can see flames in the room adjacent to your theatre. Describe your management of this situation. (39.7%) | D24: FALSE | E24: 39.7
A25: 2011.1.13 | B25: You are involved in the planning of a new Day Surgery Unit. (a) What systems would you put in place to reduce the likelihood of a power failure? (50%) (b) Outline a protocol for dealing with power failures. (50%) | D25: FALSE | E25: 35
A27: No. SAQ's | B27: =COUNTA(D2:D25) -> 16
A28: Completed | B28: =COUNTIF(D3:D25, TRUE) -> 0
A29: Percent | B29: =(B28/B27)*100 -> 0

Sheet Safety + Quality
A1: Safety and quality in anaesthetic practice | E1: Pass Rate
A2: 2018.2.10 | B2: Describe the pathophysiological effects associated with the use of a pneumatic limb tourniquet and how they can be minimised. | D2: FALSE | E2: 60.3
A3: 2018.1.2 | B3: How does a residual current device (RCD) work? (30%) Evaluate its usefulness to protect patients from injury. (70%) | D3: FALSE | E3: 49.8
A4: 2017.2.10 | B4: Describe how the safety of anaesthetised patients undergoing surgery is ensured in the event of a power failure to the hospital. | D4: FALSE | E4: 61.3
A5: 2016.2.7 | B5: A new hospital is setting up its pain service and you have been asked to write the administration guidelines for ketamine infusions on the ward. Outline the information you would include in these guidelines. | D5: FALSE | E5: 46.1
A6: 2016.2.12 | B6: Evaluate the use of 10% povidone−iodine compared to 0.5% chlorhexidine/70% isopropyl alcohol as skin preparation prior to the institution of lumbar epidural analgesia. | D6: FALSE | E6: 36.2
A7: 2016.1.3 | B7: The anaesthetic machine is designed to deliver gases and anaesthetic vapours to patients via a breathing circuit. Outline the safety features of an anaesthetic machine. | D7: FALSE | E7: 65
A8: 2014.1.03 | B8: Operating theatres starting late have been identified as a problem in your hospital. How would you design and implement a quality improvement program to assess and improve operating theatre starting times in your hospital? | D8: FALSE | E8: 65.8
A9: 2014.1.10 | B9: Outline the steps to ensure the safe storage, handling and administration of blood to a patient once the packed red blood cells (RBC’s) have arrived in the theatre suite. | D9: FALSE | E9: 55.7
A10: 2013.2.04 | B10: Outline methods available to minimise intraoperative drug errors | D10: FALSE | E10: 81.9
A11: 2013.1.02 | B11: Outline the features of the anaesthetic machine that ensure safe gas delivery to the patient. | D11: FALSE | E11: 28.3
A12: 2012.2.06 | B12: You are the consultant who has been tasked with introduction of the WHO SSCL (surgical safety checklist) to your hospital. 1. What are the principles behind the checklist that enhance patient safety, with reference to each component? (70%) 2. What do you expect the barriers to its effective implementation to be? (30%) | D12: FALSE | E12: 43.6
A13: 2012.2.09 | B13: A developmentally delayed, unco-operative adult requires a magnetic resonance imaging scan (MRI) for investigation of deteriorating control of seizures. What issues do you foresee in terms of providing general anaesthesia in the MRI suite for this patient? | D13: FALSE | E13: 63.1
A14: 2012.1.14 | B14: a. What do the terms decontamination, disinfection and sterilisation mean? (30%) b. What measures should be in place to minimise the risk of transmission of infection to the respiratory tract of patients via anaesthetic equipment? (70%) | D14: FALSE | E14: 76.4
A15: 2011.2.11 | B15: a. Define quality assurance. (30%) b. How would you design and implement a Quality Improvement programme to assess patient satisfaction with the preoperative visit? (70%) | D15: FALSE | E15: 57
A16: 2010.2.14 | B16: You are on the interview panel appointing new Assistants for the Anaesthetist. What are the educational requirements and the practical responsibilities expected of the applicants? | D16: FALSE | E16: 40.3
A17: 2010.1.01 | B17: a. List the complications associated with the use of limb tourniquets during surgery. (60%) b. How can these complications be minimised? (40%) | D17: FALSE | E17: 66.3
A18: 2010.1.12 | B18: a. Describe the aims of a quality assurance program. (40%) b. Outline the steps you would take to set up a quality assurance program for your anaesthesia department. (60%) | D18: FALSE | E18: 51.2
A19: 2010.1.13 | B19: a. What do you understand by the term “Universal Precautions”? (40%) b. Describe how you apply these precautions in your daily anaesthesia practice. (60%) | D19: FALSE | E19: 65.7
A20: Positioning
A21: 2018.2.1 | B21: Outline the mechanisms that may contribute to visual loss associated with spinal surgery in the prone position. (50%) Describe strategies that may reduce the risk of visual loss in this situation. (50%) | D21: FALSE | E21: 49.6
A22: 2017.2.3 | B22: A 55-year-old male with severe steroid-dependent rheumatoid arthritis requires spinal surgery in the prone position. Discuss your considerations for patient positioning for the procedure. | D22: FALSE | E22: 72.4
A23: 2017.1.9 | B23: Outline the risk factors for, possible mechanisms of, and methods to prevent, postoperative ulnar neuropathy. | D23: FALSE | E23: 90.3
A24: 2014.2.3 | B24: A patient is scheduled to undergo prolonged steep head-down surgery. a. Outline the potential anaesthetic implications of this position in this situation. (50%) b. Describe how you would modify your anaesthetic plan to minimise these. (50%) | D24: FALSE | E24: 59
A25: 2014.1.12 | B25: A patient is scheduled on your list for arthroscopic shoulder surgery. The surgery is to be performed in the beach chair position. List the problems associated with this position and describe how you could minimise them. | D25: FALSE | E25: 44.3
A26: 2013.1.12 | B26: What are the hazards of the prone position for patients under general anaesthesia and how can they be minimized? | D26: FALSE | E26: 37.6
A27: 2012.1.02 | B27: A 65-year-old man is on your list for an arthroscopic acromioplasty that is to be performed in the beachchair position. a. List the complications associated with this position (30%) b. Describe how the risk of these complications can be minimised (70%) | D27: FALSE | E27: 50.5
A28: 2011.2.07 | B28: Four hours after multi-level laminectomy with instrumentation, your patient complains of unilateral visual loss. a. What is your differential diagnosis? (40%) b. How can you minimise the risk of visual complications in the prone patient? (60%) | D28: FALSE | E28: 62
A29: 2010.1.02 | B29: a. List the hazards to the patient associated with the prone position under general anaesthesia. (60%) b. How can these hazards be minimised? (40%) | D29: FALSE | E29: 22.9
A30: Scientific Enquiry
A31: 2019.1.14 | B31: Describe the principles that are important in making clinical research ethical. | D31: FALSE | E31: 62.5
A32: 2018.2.13 | B32: Evaluate the merits of large multicentre randomised controlled trials compared with the merits of single-centre observational studies in guiding clinical practice. | D32: FALSE | E32: 32.6
A33: 2017.2.14 | B33: Describe how you would determine the usefulness of a published paper for your own practice. | D33: FALSE | E33: 62
A34: 2017.1.13 | B34: You wish to investigate the effects of a new anaesthesia technique on postoperative patient outcomes. Describe the stages of study design that are important to consider when planning this trial. | D34: FALSE | E34: 44.9
A35: 2015.1.5 | B35: You are planning a trial to evaluate the efficacy of a new drug on reducing post-laparotomy pain. Describe potential sources of bias and indicate how these can be minimised. | D35: FALSE | E35: 98.4
A36: 2014.2.11 | B36: In a large clinical trial, patients were randomised into two groups to study the impact of using a nitrous oxide (N2O) anaesthetic on the incidence of death and other major cardiovascular events. The table below shows the results. 70% N2O in 30% O2- Sampe size 3500- Number of cases of death and major cardiovascular events 283 Air in 30% O2- Sample size 3500- Number of cases of death and major cardiovascular events 296 Data analysis found that the difference in the incidence of death and major cardiovascular events had a p value of 0.64. The study reported that 70% N2O anaesthesia had a relative risk of death and major cardiovascular events of 0.96 (95% CI 0.82-1.13). Define the following terms and explain their meaning in relation to this study: - P value - Risk reduction - Confidence interval - Odds ratio | D36: FALSE | E36: 60.2
A37: 2014.1.02 | B37: In a large clinical trial, patients were randomised into two groups to study the impact of BIS monitoring on the incidence of awareness. The table below shows the results. Data analysis found that the difference in the incidence of awareness had a p value of 0.022. The study reported that BIS guided anaesthesia reduced the risk of awareness by 82% (95% CI 17-98%) with an odds ratio of 0.2 and a NNT of 140. Define the following terms and explain their meaning in relation to this study: - P value - Risk reduction - Confidence interval - Odds ratio - Number needed to treat | D37: FALSE | E37: 26.9
A38: 2013.1.09 | B38: a. What is evidence based medicine. (30%) b. Describe the features of a systematic review, indicating how it may influence your practice of anaesthesia. (70%) | D38: FALSE | E38: 53
A39: 2012.2.14 | B39: The Mallampati test is a commonly used bedside screening tool to assess the probability of a difficult intubation. Explain the terms sensitivity, specificity, positive predictive value, and negative predictive value when applied to this test. | D39: FALSE | E39: 53
A40: 2011.2.02 | B40: A new randomised controlled trial suggests therapy A is better than therapy B in the treatment of condition X. How would you evaluate this trial before changing your clinical practice? | D40: FALSE | E40: 65
A41: 2010.2.06 | B41: How would you critically appraise a paper published in a journal? | D41: FALSE | E41: 23
A43: No. SAQ's | B43: =COUNTA(D2:D41) -> 38
A44: Completed | B44: =COUNTIF(D2:D41, TRUE) -> 0
A45: Percent | B45: =(B44/B43)*100 -> 0

Sheet Roles in Practice
A1: Roles in Practice | E1: Pass Rate
A2: Medical Expert
A3: Communicator | D3: FALSE
A4: 2019.2.5 | B4: A patient dies soon after induction of anaesthesia. As a senior clinician you are asked to arrange a debriefing. Outline the considerations. | E4: 81.7
A5: Collaborator
A6: Leader and Manager
A7: 2019.2.4 | B7: Describe the requirements for establishing an anaesthetic service for a neurosurgical theatre with a magnetic resonance imaging scanner (67.2%) | D7: FALSE | E7: 67.2
A8: 2018.1.5 | B8: You are developing an anaesthetic department policy for acute endovascular stroke intervention. Outline the issues to be considered in your policy. | D8: FALSE | E8: 41.8
A9: 2012.1.11 | B9: You are asked to initiate an opioid patient-controlled analgesia service in your hospital. a. How would you ensure patient safety? (70%) b. What are the key components to include in designing an order form? (30%) | D9: FALSE | E9: 59.9
A10: Health Advocate
A11: Scholar
A12: Professional
A13: 2018.1.8 | B13: You have rated a workplace based assessment for a trainee as unsatisfactory. The trainee has now written to the head of the department complaining that you have been bullying him. Define the following (50%) -Bullying-Feedback Outline your approach to this complaint. (50%) | D13: FALSE | E13: 85.4
A14: 2015.1.13 | B14: An elderly patient has collapsed with a bleed into a known brain tumour and is unable to communicate. An advance health directive has been produced stating she would not wish to receive treatment if the most likely outcome was a significant permanent Define advance health directive, including its scope and legal status (50%) How would this advance health directive influence decision making around treatment options. neurological deficit. (50%) | D14: FALSE | E14: 78.8
A15: 2012.2.08 | B15: Outline the key steps in gaining informed consent for anaesthesia in a competent ASA 1 adult undergoing minor elective surgery. | D15: FALSE | E15: 51
A16: 2012.1.04 | B16: An elderly patient has previously declined an above knee amputation for a gangrenous leg. She becomes acutely unwell, confused and no longer competent to make decisions. At the request of the family, the surgeon has approached you to discuss whether to proceed with surgery or not. She is likely to die without the surgery. Outline the ethical considerations you would discuss with the surgeon. | D16: FALSE | E16: 79.1
A17: 2011.1.03 | B17: Explain the professional attributes of an anaesthetist in specialist practice. | D17: FALSE | E17: 26
A19: No. SAQ's | B19: =COUNTA(D3:D17) -> 9
A20: Completed | B20: =COUNTIF(D3:D17, TRUE) -> 0
A21: Percent | B21: =(B20/B19)*100 -> 0

Sheet Cardiac
A1: Cardiac Surgery and Interventional Cardiology | E1: Pass Rate
A2: Medical Expert
A3: 2019.2.1 | B3: Describe the rationale for the use of deep hypothermic circulatory arrest and outline the pathophysiological consequences of this technique (44.3%) | D3: FALSE | E3: 44.3
A4: Cardiac Surgery and Cardipulmonary Bypass
A5: Preoperative Assessment
A6: Intra-operative
A7: Defibrillation and Pacing
A8: 2017.1.14 | B8: You are asked to provide anaesthesia for cardioversion for a 60-year-old male with atrial fibrillation. Which factors influence the success of the cardioversion, and a safe outcome? | D8: FALSE | E8: 45.9
A9: 2010.2.07 | B9: (a) Describe the common classification code for permanent pacemakers. (30%) (b) Outline the principles involved in the perioperative management of patients with a permanent pacemaker. (70%) | D9: FALSE | E9: 90.6
A10: Cardiopulmonary Bypass and ECMO
A11: 2016.2.10 | B11: Outline the considerations for successful weaning from cardiopulmonary bypass after coronary artery graft surgery. | D11: FALSE | E11: 71.1
A12: 2012.2.03 | B12: 1. What are the prerequisites for separation from standard cardiopulmonary bypass after uneventful coronary artery bypass surgery? (50%) 2. What are the likely causes of hypotension in the immediate post-separation period? (50%) | D12: FALSE | E12: 59.1
A13: Postoperative
A14: 2015.1.3 | B14: A patient who is 6 weeks post cardiac surgery has a pericardial effusion requiring treatment. Outline the symptoms and signs of this condition. (70%) Which of these features would trigger an urgent intervention? (30%) | D14: FALSE | E14: 82.9
A15: Echocardiography
A16: Interventional cardiology
A17: 2014.1.02 | B17: An otherwise well 35-year-old woman is scheduled for ablation of an accessory atrioventricular pathway in the Cardiac Electrophysiology laboratory. What are the implications for anaesthesia and how would you manage them? | D17: FALSE | E17: 55.3
A19: No. SAQ's | B19: =COUNTA(D3:D17) -> 7
A20: Completed | B20: =COUNTIF(D3:D17, TRUE) -> 0
A21: Percent | B21: =(B20/B19)*100 -> 0

Sheet Gsurg+Uro+Gyn+Endo
A1: General Surgical, Urological, Gynaecological and Endoscopic Procedures | E1: Pass Rate
A2: Perioperative Medicine
A3: 2017.2.8 | B3: Discuss the preoperative assessment for a patient who presents for thyroidectomy. | D3: FALSE | E3: 64.4
A4: 2016.2.1 | B4: Describe the pathophysiological effects of carbon dioxide pneumoperitoneum during a surgical procedure. | D4: FALSE | E4: 75
A5: 2014.1.09 | B5: An otherwise well patient presents for a laparoscopic right hemicolectomy. What are the issues related to the carbon dioxide pneumoperitoneum? How would your intra operative management address these issues? | D5: FALSE | E5: 96.8
A6: Surgery and Endoscopy
A7: 2019.2.12 | B7: List the advantages and disadvantages of opioid-free approaches for laparoscopic sleeve gastrectomy. (50%) Justify your choice of opioid-free technique for this procedure. (50%) - (62.6%) | D7: FALSE | E7: 62.6
A8: 2017.2.5 | B8: What are the considerations when anaesthetising a patient for a complex laparoscopic ultra-low colonic resection? | D8: FALSE | E8: 36.2
A10: No. SAQ's | B10: =COUNTA(D3:D8) -> 5
A11: Completed | B11: =COUNTIF(D3:D8, TRUE) -> 0
A12: Percent | B12: =(B11/B10)*100 -> 0

Sheet ENT+MF+Dent+ECT
A1: Head and neck, Ear, Nose and Throat, Dental Surgery and Electro-convulsive Therapy | E1: Pass Rate
A2: Head and Neck and Ear Nose and Throat
A3: 2019.1.1 | B3: What are the issues associated with jet ventilation? | D3: FALSE | E3: 62
A4: 2019.1.15 | B4: Discuss your considerations when anaesthetising a patient for functional endoscopic sinus surgery. | D4: FALSE | E4: 64.9
A5: 2014.2.14 | B5: A patient presents for a microlaryngoscopy and laser of a 5 mm nodule on his left vocal cord. (a) Outline the risks associated with the use of lasers in airway surgery. (50%) (b) Discuss the precautions that should be taken to manage these. (50%) | D5: FALSE | E5: 80.7
A6: 2012.2.13 | B6: Discuss the key areas of concern in your preoperative assessment of a patient for excision of a large tonsillar mass. | D6: FALSE | E6: 69.8
A7: 2012.2.08 | B7: A 35-year-old female is booked for thyroidectomy. Her blood results are as follows. Thyroid stimulating hormone (TSH, thyrotropin) 0.1 (N 0.3 – 3 mIU/l) Total Thyroxine (Total T4) 20 (N 4 – 11 μg/dl) Free Thyroxine (Free T4) 4 (N 0.7 – 1.8 ng/dl) Free Tri-iodothyronine (Free T3) 120 (N 60 – 175 ng/dl) a. Interpret the thyroid function tests (10%) b. Justify when you would proceed to thyroidectomy in this patient (50%) c. What is the management of an intraoperative thyrotoxic crisis? (40%) | D7: FALSE | E7: 84.1
A8: Dental/maxillofacial surgery
A9: Electro-convulsive Therapy
A10: 2016.1.13 | B10: Describe the physiological responses to electroconvulsive therapy (ECT). (50%) Discuss how these affect your anaesthetic management of a patient undergoing ECT. (50%) | D10: FALSE | E10: 58
A12: No. SAQ's | B12: =COUNTA(D3:D10) -> 6
A13: Completed | B13: =COUNTIF(D3:D10, TRUE) -> 0
A14: Percent | B14: =(B13/B12)*100 -> 0

Sheet ICU
A1: Intensive Care | E1: Pass Rate
A2: General Care of the Patient in Intensive Care
A3: 2016.1.12 | B3: Outline the physiological implications of brainstem death following subarachnoid haemorrhage in a patient listed for organ donation. | D3: FALSE | E3: 25
A4: 2012.2.07 | B4: In regard to total parenteral nutrition: 1. What are the indications? (30%) 2. What are the complications? (70%) | D4: FALSE | E4: 34.9
A5: Sepsis and Multi-Organ Dysfunction
A6: Acute Circulatory Failure and Cardiovascular Disorders (also refer to the Resuscitation, trauma and crisis management clinical fundamental)
A7: Shock
A8: Disorders of Heart and Great Vessels
A9: Respiratory Failure and Intensive care of Respiratory Disorders (also refer to the Resuscitation, trauma and crisis management and Perioperative medicine clinical fundamentals)
A10: 2017.2.15 | B10: Describe the features you require of a transport ventilator for a patient with severe ventilator-dependent acute respiratory distress syndrome. | D10: FALSE | E10: 25.2
A11: 2017.1.1 | B11: List the indications for hyperbaric oxygen therapy. (30%) Discuss the problems with providing this treatment. (70%) | D11: FALSE | E11: 14.6
A12: 2013.2.14 | B12: Intensive care patients may be at risk of ventilator-associated pneumonia (VAP). a. Describe the likely aetiology of, and risk factors for, VAP. (50%) b. Outline prevention strategies that reduce the incidence of VAP. (50%) | D12: FALSE | E12: 28
A13: NIV and Invasive Ventilation
A14: 2019.2.6 | B14: Discuss the advantages and disadvantages of non-invasive ventilation methods in the intensive care unit (22.9%) | D14: FALSE | E14: 22.9
A15: Renal and Fluid and Electrolyte Disorders
A16: Metabolic and Endocrine Disorders
A17: Neurological and neuromuscular disorders
A18: 2012.1.07 | B18: a. List the methods of assessing intracranial pressure (ICP) (30%) b. Evaluate the role of ICP monitoring in the setting of traumatic brain injury (70%) | D18: FALSE | E18: 64.8
A19: Gastrointestinal disorders
A20: Haematological and oncological disorders
A21: Environmental injuries
A22: Intensive care of the obstetric patient (also refer to the Obstetric anaesthesia and analgesia specialised study unit)
A24: No. SAQ's | B24: =COUNTA(D3:D22) -> 7
A25: Completed | B25: =COUNTIF(D3:D22, TRUE) -> 0
A26: Percent | B26: =(B25/B24)*100 -> 0

Sheet NSurg+NRad
A1: Neurosurgery and Neuroradiology
A2: Anatomy
A3: 2016.2.6 | B3: You are asked to provide local anaesthesia for awake craniotomy. Describe the innervation of the scalp, including the landmarks for nerve blockade. | D3: FALSE | E3: 44.1
A4: Pathophysiology
A5: Pharmacology
A6: Monitoring
A7: Clinical neuroanaesthesia
A8: 2017.2.4 | B8: A 44-year-old male is booked for debulking of a large intracranial tumour. Describe the physiological aims during this case. (50%) Justify your anaesthetic technique to achieve these aims. (50%) | D8: FALSE | E8: 63.2
A9: 2016.1.7 | B9: Outline the pathophysiological insults that exacerbate a primary brain injury following head trauma and indicate how can they be minimised. | D9: FALSE | E9: 72
A10: 2014.2.2 | B10: A 25 year old man with a history of blunt trauma to the right side of his head has a fixed and dilated right pupil. He has been intubated and ventilated in the emergency department after an initial Glasgow Coma Score (GCS) of 15 on admission had fallen to 3.Evaluate the pharmacological and non-pharmacological methods to manipulate this patient’s intracranial pressure? | D10: FALSE | E10: 86.1
A11: 2011.2.06 | B11: A 50-year-old patient presents for urgent craniotomy and decompression of a subdural haematoma. Two days ago he was well, but now has a Glasgow Coma Scale score of 11. He is combative and has pulled out his intravenous line. On inspection there are no obvious veins for cannulation. a. List the options available for induction and intubation. (30%) b. Describe and justify your preferred approach. (70%) | D11: FALSE | E11: 59
A12: 2011.1.07 | B12: A patient is scheduled for posterior fossa surgery in the sitting position. (a) Outline the precautions you would take to minimise the risk of venous air embolism. (70%) (b) How would you recognise an air embolism intraoperatively? (30%) | D12: FALSE | E12: 53
A13: 2010.1.07 | B13: A 43 year old female with a Grade 1 subarachnoid haemorrhage is scheduled for coiling of her middle cerebral artery in the radiology suite. Discuss the important issues to consider when providing anaesthesia for this patient. | D13: FALSE | E13: 62.7
A15: No. SAQ's | B15: =COUNTA(D3:D13) -> 7
A16: Completed | B16: =COUNTIF(D3:D13, TRUE) -> 0
A17: Percent | B17: =(B16/B15)*100 -> 0

Sheet OBS
A1: Obstetric Anaesthesia and Analgesia | E1: Pass Rate
A2: Perioperative Medicine
A3: 2017.2.6 | B3: Describe the indications for referral for an antenatal anaesthetic assessment. | D3: FALSE | E3: 47.9
A4: Labour
A5: 2019.2.2 | B5: Evaluate the options for managing a confirmed postdural puncture headache in an obstetric patient (78.6%) | D5: FALSE | E5: 78.6
A6: 2011.2.04 | B6: While performing an epidural for labour analgesia in an otherwise healthy primigravida during the first stage of labour you inadvertently cause a dural puncture with the Tuohy needle. Discuss your management of this complication. | D6: FALSE | E6: 60
A7: LSCS
A8: 2012.1.05 | B8: A healthy 28-year-old primigravida is scheduled for elective lower segment caesarean section for breech presentation at 39 weeks gestation. You have performed a spinal anaesthetic using 0.5% bupivacaine 2.2 ml and fentanyl 15 μg (total volume 2.5 ml). a. Describe the issues in assessing adequacy of the block for the planned surgery (50%) b. Describe the options for managing an inadequate block recognised prior to commencement of surgery (50%) | D8: FALSE | E8: 63.2
A9: Comorbidites and Obstetric Conditions
A10: 2019.1.12 | B10: A 30-year-old woman who is 28 weeks pregnant has been referred to your tertiary high-risk obstetric clinic. She has complex cyanotic heart disease and now functions with a Fontan circulation. How would you stratify her cardiovascular risk? (30%) What are the relevant anaesthetic issues for this patient? (70%) | D10: FALSE | E10: 68.3
A11: 2018.2.14 | B11: Describe the pathophysiology of hypertrophic cardiomyopathy and how this is affected by pregnancy, labour, and vaginal delivery. | D11: FALSE | E11: 67.4
A12: 2014.2.8 | B12: A 25 year old woman who is 30 weeks pregnant has been referred to your tertiary high risk obstetric clinic. She has complex cyanotic congenital heart disease and now functions with a Fontan circulation. a) How would you stratify the cardiovascular risk? (30%) b) What are the issues relevant to anaesthetic care that will need to be managed for this patient? (70%) | D12: FALSE | E12: 31.9
A13: 2013.1.07 | B13: A 25 year old woman at 28 weeks gestation, with a body mass index (BMI) of 45 attends the high risk obstetric clinic. Outline the pathophysiology of morbid obesity affecting pregnancy and describe the implications for obstetric anaesthetic care. | D13: FALSE | E13: 52
A14: 2012.2.11 | B14: You have been asked to provide anaesthesia for a lower uterine segment caesarean section (LUSCS) in a woman at 38 weeks gestation. She has a pacemaker-defibrillator implanted for a known cardiomyopathy. Her current echocardiogram demonstrates an ejection fraction of 35% with mild to moderate left ventricular global hypokinesis. Clinically, the patient feels very well. 1. What additional preparations with respect to her cardiovascular system would you make to ensure the safe management of this patient during her Caesarean Section? 2. Outline the relative benefits and risks of a regional technique compared with general anaesthesia in this patient. | D14: FALSE | E14: 13.4
A15: 2010.1.05 | B15: A 26 year old woman with subclinical myotonic dystrophy presents to the high risk obstetric clinic. She is 25 weeks pregnant in her first pregnancy and otherwise well. She hopes for a normal vaginal delivery. Describe and justify your recommendations for the management of her analgesia for labour and the perioperative management of any potential operative delivery. | D15: FALSE | E15: 52.4
A16: Obstetric Complications and Emergencies
A17: 2018.1.12 | B17: A 24-year-old with a breech presentation at 35 weeks gestation has severe preeclampsia and requires delivery by lower segment caesarean section. You witness her having a short self- limiting generalised seizure in the delivery suite. Outline the key points of her management prior to theatre. (50%) Describe the changes you would make to your usual general anaesthetic technique for her lower segment caesarean section. (50%) | D17: FALSE | E17: 49.8
A18: 2016.2.3 | B18: A 30-year-old female at term requires a general anaesthetic for lower uterine segment caesarean section for significant antepartum haemorrhage. Discuss how significant antepartum haemorrhage affects your perioperative management. | D18: FALSE | E18: 59.9
A19: 2015.1.6 | B19: You are called to see a 30-year-old woman who has collapsed 2 hours post normal vaginal delivery. What is the differential diagnosis? (30%) Outline the clinical features and investigations that would support a diagnosis of postpartum haemorrhage. (70%) | D19: FALSE | E19: 71.4
A20: 2013.2.13 | B20: You are asked to assess a 35-year-old woman on labour ward. She has uncontrolled hypertension at 34 weeks’ gestation. Her blood pressure is 180/110 mmHg and urinalysis shows 3+ of protein. Her obstetrician wants to deliver her by caesarean section as soon as feasible. Outline your management to optimise her status prior to transfer to theatre. | D20: FALSE | E20: 69.2
A21: 2011.1.05 | B21: (a) How would you clinically assess a patient complaining of leg numbness the day after a spinal anaesthetic for an emergency caesarean section? (70%) (b) How would you manage the situation? (30%) | D21: FALSE | E21: 77
A22: 2010.2.08 | B22: How and why is cardiopulmonary resuscitation modified for the pregnant patient at term compared with the non-pregnant patient? | D22: FALSE | E22: 55.4
A24: No. SAQ's | B24: =COUNTA(D3:D22) -> 16
A25: Completed | B25: =COUNTIF(D3:D22, TRUE) -> 0
A26: Percent | B26: =(B25/B24)*100 -> 0

Sheet OPHTHAL
A1: Ophthalmic Procedures
A2: Perioperaitve Medicine
A3: Anaeshtetic Management
A4: 2012.2.05 | B4: You are asked to assess a 4-year-old child who is scheduled for a strabismus (squint) correction as a day case procedure. 1. What are the issues relevant to anaesthesia? (70%) 2. What would prevent you from discharging this patient home after surgery? (30%) | D4: FALSE | E4: 74.5
A5: Regional
A6: 2010.1.08 | B6: a. Describe the anatomy of the eye relevant to a sub-Tenon’s eye block. (40%) b. Discuss the potential advantages and disadvantages of this technique for providing regional anaesthesia for eye surgery. (60%) | D6: FALSE | E6: 83.7
A7: Emergencies and Complications
A8: 2015.1.8 | B8: A thirty-year-old man has sustained a penetrating eye injury requiring surgery. What are the key anaesthetic issues? (30%) Outline your plan of perioperative management and justify your choices. (70%) | D8: FALSE | E8: 56.5
A9: 2013.2.09 | B9: A 25-year-old boilermaker is scheduled for repair of a penetrating eye injury on the emergency list. a. List the determinants of intraocular pressure in general. (30%) b. Discuss the perioperative measures available to minimise increases in intraocular pressure in this patient. (70%) | D9: FALSE | E9: 46.2
A11: No. SAQ's | B11: =COUNTA(D3:D9) -> 4
A12: Completed | B12: =COUNTIF(D3:D9, TRUE) -> 0
A13: Percent | B13: =(B12/B11)*100 -> 0

Sheet ORTHO
A1: Orthopaedic Surgery
A2: Orthopaedic Trauma
A3: Elective and Non-Traumatic Emergency Orthopaedic Surgery
A4: Perioperative Medicine
A5: 2015.2.15 | B5: Evaluate the role of tranexamic acid in primary hip arthroplasty. | D5: FALSE | E5: 77
A6: Anaesthetic Management
A7: 2013.2.07 | B7: Discuss the safe use of arterial tourniquets for orthopaedic procedures. | D7: FALSE | E7: 33.5
A8: Emergencies and Complications
A10: No. SAQ's | B10: =COUNTA(D3:D8) -> 2
A11: Completed | B11: =COUNTIF(D3:D8, TRUE) -> 0
A12: Percent | B12: =(B11/B10)*100 -> 0

Sheet PAEDS
A1: Paediatric Anaesthesia | E1: Pass Rate
A2: Airway Management | E2: 70.8
A3: 2017.1.10 | B3: Outline the advantages and disadvantages of using the paediatric circle system and the Jackson-Rees modification of Ayre’s T-piece (Mapleson F) for anaesthesia in a 15 kg child. | D3: FALSE | E3: 23.3
A4: 2014.1.01 | B4: Outline the advantages and disadvantages of using the paediatric circle system and the Jackson-Rees modification of Ayre’s T-piece (Mapleson F) for anaesthesia in a 15 kg child. | D4: FALSE
A5: Pain Medicine
A6: 2019.1.4 | B6: A 9-year-old girl with cerebral palsy is scheduled to undergo bilateral femoral varus derotation osteotomy and adductor lengthening. Outline the challenges of providing effective postoperative analgesia for her surgery and discuss the analgesia options available. | D6: FALSE | E6: 35.6
A7: Perioperative Medicine
A8: 2016.2.15 | B8: A two-year-old boy scheduled for hypospadias repair is found to have a praecordial murmur. Justify your decision to proceed. | D8: FALSE | E8: 74.3
A9: 2015.2.6 | B9: A three year old child requires an adenotonsillectomy for obstructive sleep apnoea. Outline and justify your peri-operative management plan. | D9: FALSE | E9: 68.3
A10: 2014.2.1 | B10: An 8 week old baby is scheduled for an inguinal hernia repair on your list at a local general hospital tomorrow. a) Outline the important issues when providing anaesthesia care for this baby. (70%) b) Justify your decision to proceed with surgery at the local general hospital (30%) | D10: FALSE | E10: 45.8
A11: 2013.2.10 | B11: A 7-year-old nonverbal girl with severe spastic cerebral palsy is scheduled for cystoscopy. a. Describe the important features of cerebral palsy relevant to planning anaesthesia for this procedure. (70%) b. What are the advantages and disadvantages of inhalational induction in this child? (30%) | D11: FALSE | E11: 57.7
A12: 2011.2.08 | B12: A child with active upper respiratory tract infection presents for general anaesthesia. a. Outline the factors that increase the rate of adverse respiratory events during anaesthesia. (50%) b. How can you reduce the risk of an adverse event occurring? (50%) | D12: FALSE | E12: 76
A13: 2011.1.09 | B13: You hear a cardiac murmur in a two-year-old child presenting for elective minor surgery. (a) What are the features of the murmur that would differentiate an innocent from a pathological murmur? (50%) (b) How would you evaluate this child’s fitness for anaesthesia from the cardiac perspective? (50%) | D13: FALSE | E13: 67
A14: Resuscitation, Trauma and Crisis Management
A15: 2018.1.1 | B15: Describe your assessment of a four-year-old child who has been rescued from a house fire | D15: FALSE | E15: 24.9
A16: 2016.1.8 | B16: A six-week-old term baby weighing 4.0 kg requires pyloromyotomy for pyloric stenosis. How would you assess the baby’s hydration status? (50%) Detail and justify your resuscitation regimen. (50%) | D16: FALSE | E16: 80
A17: 2012.1.09 | B17: A 3-year-old presents to the emergency department with a recent onset of stridor. a. List the differential diagnoses (30%) b. How do you differentiate between the potential causes of this stridor? (70%) | D17: FALSE | E17: 72.5
A18: 2010.2.05 | B18: A 6-month-old boy presents with an acute abdomen. He is diagnosed with intussusception and booked for laparotomy after a failed attempt at reduction. His heart rate is 160bpm and BP is 75/45 mmHg. His electrolyte profile is as shown: Na⁺ 132 mmol/l (135 – 145) K⁺ 2.7 mmol/l (3.5 – 5.5) Cl⁻ 106 mmol/l (95 – 110) Urea 3.3 mmol/l (3.5 – 8.5) Creatinine 86 μmol/l (60 – 110) Lactate 4.5 mmol/l (1.0 – 1.8) (a) How would you determine his degree of dehydration and how severe is it likely to be? (40%) (b) Describe your perioperative fluid management. (40%) (c) When would you proceed to surgery and why? (20%) | D18: FALSE | E18: 65.5
A19: General Anaesthesia and Sedation
A20: Clinical and Applied Pharmacology
A21: 2010.1.09 | B21: a. Describe the factors that influence emergence delirium in children. (50%) b. How would you manage emergence delirium in a 3 year old child having had myringotomy tubes inserted under general anaesthesia? (50%) | D21: FALSE | E21: 61.4
A22: Physiology
A23: 2013.1.10 | B23: List methods to prevent hypothermia in paediatric patients during anaesthesia and surgery, commenting on the effectiveness of each. | D23: FALSE | E23: 66.8
A24: Vascular Access
A25: Fluid Therapy and Monitoring Skills
A26: Anaesthesia for Specific Procedures
A27: Regional Anaesthesia
A28: 2017.2.11 | B28: Describe the anatomy relevant to performing a caudal block in a two-year-old male. | D28: FALSE | E28: 40.5
A29: Safety and Quality
A31: No. SAQ's | B31: =COUNTA(D3:D29) -> 16
A32: Completed | B32: =COUNTIF(D3:D29, TRUE) -> 0
A33: Percent | B33: =(B32/B31)*100 -> 0

Sheet Plastics+Burns
A1: Plastic, Reconstructive and Burns surgery | E1: Pass Rate
A2: Plastic and reconstructive surgery
A3: 2019.1.2 | B3: A 60-year-old woman is having breast reconstruction surgery using a deep inferior epigastric perforator free flap six months following a mastectomy for breast cancer. Discuss the issues of anaesthetic management relevant for this procedure. | D3: FALSE | E3: 49
A4: 2014.1.11 | B4: Outline the physiological determinants of blood flow through a myocutaneous free flap? (50%) Evaluate the use of vasoconstrictors for support of blood pressure following reanastamosis of a myocutaneous free flap? (50%) | D4: FALSE | E4: 61.6
A5: Burns
A6: 2015.2.14 | B6: A 65 year old female patient is two hours into debridement and skin grafting for a 40% burn to her thorax and legs. She is intubated and paralysed. An arterial blood gas now shows: pH 7.12 PaO2 150 PaCO2 45 HCO3 15 K 6.3 a. Outline the potential causes for this patient’s hyperkalaemia (30%). b. Describe your management of this hyperkalaemia. (70%) | D6: FALSE | E6: 70.2
A8: No. SAQ's | B8: =COUNTA(D3:D6) -> 3
A9: Completed | B9: =COUNTIF(D3:D6, TRUE) -> 0
A10: Percent | B10: =(B9/B8)*100 -> 0

Sheet Thoracics
A1: Thoracic Surgery | E1: Pass Rate
A2: Anatomy
A3: Physiology
A4: Preoperative assessment
A5: Anaesthesia for thoracic surgery
A6: 2018.2.15 | B6: A 45-year-old woman with a large anterior mediastinal mass is scheduled for mediastinoscopy and biopsy. Discuss your preoperative assessment of this patient. | D6: FALSE | E6: 73
A7: 2017.2.1 | B7: A patient is anaesthetised for video-assisted thoracoscopic resection of the left upper lobe. At the completion of surgery, the double-lumen tube is in situ and the patient has persistent hypoxia. List the potential causes of hypoxia in this situation. (30%) How will you manage this? (70%) | D7: FALSE | E7: 79.9
A8: 2016.1.4 | B8: You are asked to anaesthetise an adult patient for a left pneumonectomy. Describe the different methods for lung isolation in this patient, including the advantages and disadvantages of each. | D8: FALSE | E8: 66
A9: 2013.2.08 | B9: You are asked to evaluate a 35-year-old patient who has been scheduled for mediastinoscopy to biopsy a symptomatic anterior mediastinal mass a. Discuss the features specific to this condition that need to be considered when planning an anaesthetic for this patient. (50%) b. Describe how you may need to adapt your anaesthetic plan in response to each of these features. (50%) | D9: FALSE | E9: 74.2
A10: 2013.1.12 | B10: a. Why can hypoxaemia occur after changing from two lung to one lung ventilation? 50% b. Describe the treatment of hypoxaemia in one lung ventilation (50%) | D10: FALSE | E10: 71.8
A11: 2012.1.06 | B11: A 25-year-old man with recurrent pneumothorax and persistent air leak is scheduled for video-assisted thoracoscopic pleurodesis. a. Outline the considerations involved in induction of anaesthesia in a patient with a persistent air leak (50%) b. Outline the management of an intraoperative deterioration of oxygen saturation in this patient (50%) | D11: FALSE | E11: 59.9
A12: Thoracic trauma
A13: 2014.2.13 | B13: a. Describe the function of a three-chamber underwater seal chest drainage system. (a diagram may be useful) (50%) b. Evaluate the use of this system in the management of haemopneumothorax secondary to blunt chest trauma? (50%) | D13: FALSE
A15: No. SAQ's | B15: =COUNTA(D3:D13) -> 7
A16: Completed | B16: =COUNTIF(D3:D13, TRUE) -> 0
A17: Percent | B17: =(B16/B15)*100 -> 0

Sheet VASC+IntRad
A1: Vascular Surgery and Interventional Radiology
A2: Preoperative assessment
A3: Anaesthesia for vascular surgery
A4: 2018.1.13 | B4: A 75-year-old patient presents for lower limb angioplasty and stenting for peripheral vascular disease. Discuss the challenges in providing anaesthesia for this patient. | D4: FALSE | E4: 80.3
A5: 2016.1.6 | B5: Outline risk factors for spinal cord ischaemia in a patient undergoing endovascular repair of a thoraco-abdominal aortic aneurysm. (50%) Discuss your approach to minimising spinal cord ischaemia in this setting. (50%) | D5: FALSE | E5: 68
A6: 2014.2.7 | B6: An 80 year old man is scheduled for endovascular abdominal aortic aneurysm repair (EVAR). a. What are the likely risk factors for acute kidney injury in this setting? (30%) b. Describe and evaluate the methods available to preserve his renal function in the perioperative period. (70%) | D6: FALSE | E6: 42.2
A7: 2010.2.02 | B7: (a) Describe the arterial blood supply of the spinal cord. (50%) (b) Why is spinal cord function at risk during open repair of a thoracic aortic aneurysm and what measures are available to reduce this risk? (50%) | D7: FALSE | E7: 67.6
A8: Carotid Endarterectomy
A9: 2017.2.2 | B9: Discuss the significance of anticipated changes in blood pressure during anaesthesia and in the post anaesthesia care unit in a patient undergoing carotid endarterectomy. (50%) Outline strategies to manage these changes. (50%) | D9: FALSE | E9: 52.1
A10: 2015.2.11 | B10: Describe the complications that can occur post carotid endarterectomy and how these may present in the post anaesthesia care unit (PACU). | D10: FALSE | E10: 75.8
A11: 2010.2.12 | B11: What are the advantages and disadvantages of general versus local anaesthesia for carotid endarterectomy? | D11: FALSE | E11: 75.5
A12: Anaesthesia for Interventional Vascular Procedures
A14: No. SAQ's | B14: =COUNTA(D2:D12) -> 7
A15: Completed | B15: =COUNTIF(D2:D12, TRUE) -> 0
A16: Percent | B16: =(B15/B14)*100 -> 0

Sheet Professional documents
A1: Domain | B1: Professional Document
A2: Roles in Practice | B2: PS59 Statement on Roles in Anaesthesia and Perioperative Care
B3: PS62 Statement on Cultural competence).
B4: ‘Supporting Anaesthetists' Professionalism and Performance: A guide for clinicians’, the ANZCA ‘Code of Professional Conduct’ and ANZCA professional documents
B5: PS26 Guidelines on Consent for Anaesthesia or Sedation
B6: PS 02 Statement on Credentialling and defining the Scope of Clinical Practice in Anaesthesia
B7: RD3 Depression and Anxiety, RD13 Impairment in a Colleague and RD20 Substance Abuse
B8: ANZCA Social Media Policy
B9: PS64 Statement on environmental sustainability in anaesthesia and pain medicine practice
A10: Safety + Quality | B10: PS55 Recommendations on Minimum Facilities for Safe Administration of Anaesthesia in Operating Suites and Other Anaesthetising Locations
B11: PS31: Recommendations on Checking Anaesthesia Delivery Systems
B12: PS18: Guidelines on Monitoring During Anaesthesia (PILOT)
B13: PS51: Guidelines for the Safe Administration of Injectable Drugs in Anaesthesia
B14: PS53 Statement on the Handover Responsibilities of the Anaesthetist
B15: PS52: Guidelines for Transport of Critically ill Patients
B16: WHO surgical safety checklist Australian and New Zealand edition
B17: PS28 Guidelines on Infection Control in Anaesthesia
B18: PS4: Recommendations for the Post-Anaesthesia Recovery Room
B19: PS 15 Recommendations for the Perioperative Care of Patients Selected for Day Care Surgery.
B20: PS58 Guidelines on Quality Assurance in Anaesthesia
B21: PS54 Statement on the Minimum Safety Requirements for Anaesthetic Machines and Workstations for Clinical Practice
B22: PS58 Guidelines on Quality Assurance in Anaesthesia
B23: PS8 Guidelines on the Assistant for the Anaesthetist
B24: PS60 Guidelines on the Perioperative Management of Patients with Suspected or Proven Hypersensitivity to Chlorhexidine
A25: Regional + LA | B25: AAGBI Safety Guideline Management of Severe Local Anaesthetic Toxicity
A26: Pain | B26: PS38 Statement Relating to the Relief of Pain and Suffering and End of Life Decisions
A27: GA + Sedation | B27: PS45 Statement on Patients' Rights to Pain Management and Associated Responsibilities
B28: PS9 - Guidelines on Sedation and/or Analgesia for Diagnostic and Interventional Medical, Dental or Surgical Procedures and the ANZCA safe procedural sedation competencies
B29: ANZICS: Central Line Insertion and Maintenance Guideline 2012
A30: Airway Mx | B30: PS56 - Guidelines on Equipment to Manage a Difficult Airway During Anaesthesia
A31: OBS | B31: RANZCOG College Statement C-Obs 14 Categorisation of urgency for caesarean section
A32: PAEDS | B32: PS29 Statement on Anaesthesia Care of Children in Healthcare Facilities Without Dedicated Paediatric Facilities
